{"text_format":"3","workbook":"xlsx","n_sheets":1,"sheets":["экология"],"not_rendered":{"external_links":1,"defined_names":8},"read":"whole","date_system":"1900"}

{"sheet":"экология","index":0,"n_rows":61,"n_cols":16,"rows_kept":61}
["№","СНИЛС","Фамилия","Имя","Отчество","Пол","Дата рождения","Участник с ОВЗ","Класс","Класс участия","Балл","Макс. Балл","Статус","Призер МЭ прошлого года","Учитель","Место работы учителя"]
[1,2,3,4,5,6,7,8,9,10,11,12,13,14,15,16]
[1,{"$f":"'[1]31ШК ИСПР'!$H$589","v":17962369020},"Михайлов","Кирилл","Денисович","м","2013-12-19",null,5,5,7,14,"призер",null,"Филиппова Светлана Александровна","МБОУ \"Лицей №31 имени А.А. Шаповалова\" НМР РТ"]
[2,{"$f":"'[1]31ШК ИСПР'!$H$501","v":18174237880},"Беляев","Матвей","Ильич","м","2014-05-29",null,5,5,6,14,"участник",null,"Филиппова Светлана Александровна","МБОУ \"Лицей №31 имени А.А. Шаповалова\" НМР РТ"]
[3,{"$f":"'[1]31ШК ИСПР'!$H$526","v":18249469107},"Колязова","Дарина","Артёмовна","ж","2014-07-01",null,5,5,6,14,{"$f":"$M$4","v":"участник"},null,"Филиппова Светлана Александровна","МБОУ \"Лицей №31 имени А.А. Шаповалова\" НМР РТ"]
[4,{"$f":"'[1]31ШК ИСПР'!$H$593","v":18282382084},"Кравцов","Константин","Антонович","м","2014-07-22",null,{"$f":"I5","v":5},5,5,14,"участник",null,"Филиппова Светлана Александровна","МБОУ \"Лицей №31 имени А.А. Шаповалова\" НМР РТ"]
[5,{"$f":"'[1]31ШК ИСПР'!$H$517","v":18343475988},"Урамов","Илия","Артёмович","м","2014-07-30",null,5,5,3,14,"участник",null,"Филиппова Светлана Александровна","МБОУ \"Лицей №31 имени А.А. Шаповалова\" НМР РТ"]
[6,{"$f":"'[1]31ШК ИСПР'!$H$500","v":"18239755910"},"Аглеева","Ульяна","Руслановна","ж","2014-07-06",null,5,5,3,14,"участник",null,"Филиппова Светлана Александровна","МБОУ \"Лицей №31 имени А.А. Шаповалова\" НМР РТ"]
[7,{"$f":"'[1]31ШК ИСПР'!$H$502","v":18003047720},"Вафин","Матвей","Романович","м","2014-01-25",null,5,5,3,14,"участник",null,"Филиппова Светлана Александровна","МБОУ \"Лицей №31 имени А.А. Шаповалова\" НМР РТ"]
[8,{"$f":"'[1]31ШК ИСПР'!$H$505","v":18116493468},"Калугин","Роман","Александрович","м","2014-04-17",null,5,5,3,14,"участник",null,"Филиппова Светлана Александровна","МБОУ \"Лицей №31 имени А.А. Шаповалова\" НМР РТ"]
[9,{"$f":"'[1]31ШК ИСПР'!$H$599","v":18463489210},"Плетнева","Полина","Ивановна","ж","2014-09-12",null,5,5,3,14,"участник",null,"Филиппова Светлана Александровна","МБОУ \"Лицей №31 имени А.А. Шаповалова\" НМР РТ"]
[10,{"$f":"'[1]31ШК ИСПР'!$H$511","v":17990192520},"Савченко","Станислав","Артёмович","м","2014-01-16",null,5,5,1,14,"участник",null,"Филиппова Светлана Александровна","МБОУ \"Лицей №31 имени А.А. Шаповалова\" НМР РТ"]
[11,{"$f":"'[1]31ШК ИСПР'!$H$503","v":18424159574},"Гайфиев","Камиль","Рамилевич","м","2014-08-29",null,5,5,1,14,"участник",null,"Филиппова Светлана Александровна","МБОУ \"Лицей №31 имени А.А. Шаповалова\" НМР РТ"]
[12,{"$f":"'[1]31ШК ИСПР'!$H$606","v":"18424160357"},"Мазитова","Ника","Руслановна","ж","2014-09-08",null,5,5,6,14,"участник",null,"Филиппова Светлана Александровна","МБОУ \"Лицей №31 имени А.А. Шаповалова\" НМР РТ"]
[13,{"$f":"'[1]31ШК ИСПР'!$H$673","v":17606358382},"Егорычева","Корнелия","Евгеньевна","ж","2013-03-09",null,6,6,9,14,"победитель",null,"Филиппова Светлана Александровна","МБОУ \"Лицей №31 имени А.А. Шаповалова\" НМР РТ"]
[14,{"$f":"'[1]31ШК ИСПР'!$H$752","v":17565350996},"Гилязетдинова","Эмилия","Ренатовна","ж","2013-02-10",null,{"$f":"I15","v":6},{"$f":"J15","v":6},8,{"$f":"$L$15","v":14},"призер",null,"Филиппова Светлана Александровна","МБОУ \"Лицей №31 имени А.А. Шаповалова\" НМР РТ"]
[15,{"$f":"'[1]31ШК ИСПР'!$H$770","v":17865564935},"Фахретдинов","Камиль","Адельевич","м","2013-06-12",null,6,6,7,14,{"$f":"$M$13","v":"участник"},null,"Филиппова Светлана Александровна","МБОУ \"Лицей №31 имени А.А. Шаповалова\" НМР РТ"]
[16,{"$f":"'[1]31ШК ИСПР'!$H$763","v":17522506558},"Мубаракшин","Ильдар","Зульфатович","м","2012-12-27",null,6,6,7,14,"участник",null,"Филиппова Светлана Александровна","МБОУ \"Лицей №31 имени А.А. Шаповалова\" НМР РТ"]
[17,{"$f":"'[1]31ШК ИСПР'!$H$686","v":17823873510},"Сахаутдинова","Сафина","Инзельевна","ж","2013-09-03",null,6,6,6,14,"участник",null,"Филиппова Светлана Александровна","МБОУ \"Лицей №31 имени А.А. Шаповалова\" НМР РТ"]
[18,{"$f":"'[1]31ШК ИСПР'!$H$775","v":17462938705},"Чирков","Егор","Владимирович","м","2012-11-16",null,6,6,6,14,"участник",null,"Филиппова Светлана Александровна","МБОУ \"Лицей №31 имени А.А. Шаповалова\" НМР РТ"]
[19,{"$f":"'[1]31ШК ИСПР'!$H$677","v":17595468431},"Камалова","Кира","Александровна","ж","2013-03-05",null,6,6,5,14,"участник",null,"Филиппова Светлана Александровна","МБОУ \"Лицей №31 имени А.А. Шаповалова\" НМР РТ"]
[20,{"$f":"'[1]31ШК ИСПР'!$H$638","v":17843089505},"Бобылев","Илья","Сергеевич","м","2013-09-17",null,6,6,5,14,"участник",null,"Филиппова Светлана Александровна","МБОУ \"Лицей №31 имени А.А. Шаповалова\" НМР РТ"]
[21,{"$f":"'[1]31ШК ИСПР'!$H$753","v":17685842632},"Гирфанова","Алия","Айратовна","ж","2013-05-10",null,6,6,4,14,"участник",null,"Филиппова Светлана Александровна","МБОУ \"Лицей №31 имени А.А. Шаповалова\" НМР РТ"]
[22,{"$f":"'[1]31ШК ИСПР'!$H$641","v":17869515538},"Галеева","Аделина","Айратовна","ж","2013-10-07",null,6,6,4,14,"участник",null,"Филиппова Светлана Александровна","МБОУ \"Лицей №31 имени А.А. Шаповалова\" НМР РТ"]
[23,{"$f":"'[1]31ШК ИСПР'!$H$662","v":17565349506},"Шайтанова","Амалия","Сергеевна","ж","2013-02-12",null,6,6,4,14,"участник",null,"Филиппова Светлана Александровна","МБОУ \"Лицей №31 имени А.А. Шаповалова\" НМР РТ"]
[24,{"$f":"'[1]31ШК ИСПР'!$H$657","v":18963210198},"Тимергалеев ","Дамир","Рустемович","м","2012-11-28",null,6,6,4,14,"участник",null,"Филиппова Светлана Александровна","МБОУ \"Лицей №31 имени А.А. Шаповалова\" НМР РТ"]
[25,{"$f":"'[1]31ШК ИСПР'!$H$655","v":17869511732},"Самигуллин","Камиль","Ринатович","м","2013-10-08",null,6,6,3,14,{"$f":"$M$26","v":"участник"},null,"Филиппова Светлана Александровна","МБОУ \"Лицей №31 имени А.А. Шаповалова\" НМР РТ"]
[26,{"$f":"'[1]31ШК ИСПР'!$H$642","v":17556086398},"Гудошникова","Анастасия","Константиновна","ж","2013-02-04",null,6,6,2,14,"участник",null,"Филиппова Светлана Александровна","МБОУ \"Лицей №31 имени А.А. Шаповалова\" НМР РТ"]
[27,{"$f":"'[1]31ШК ИСПР'!$H$761","v":17743776820},"Меньшиков","Данил","Владимирович","м","2013-06-26",null,6,6,1,14,"участник",null,"Филиппова Светлана Александровна","МБОУ \"Лицей №31 имени А.А. Шаповалова\" НМР РТ"]
[28,{"$f":"'[1]31ШК ИСПР'!$H$863","v":19351736085},"Мачихина","Валерия","Валерьевна","ж","2012-10-03",null,7,7,12,18,"победитель",null,"Филиппова Светлана Александровна","МБОУ \"Лицей №31 имени А.А. Шаповалова\" НМР РТ"]
[29,{"$f":"'[1]31ШК ИСПР'!$H$812","v":17018871570},"Ибатуллина","Ульяна","Родионовна","ж","2012-01-22",null,7,7,11,18,"призер",null,"Филиппова Светлана Александровна","МБОУ \"Лицей №31 имени А.А. Шаповалова\" НМР РТ"]
[30,{"$f":"'[1]31ШК ИСПР'!$H$868","v":17099468113},"Пашина","Софья","Дмитриевна","ж","2012-03-05",null,{"$f":"I31","v":7},{"$f":"J31","v":7},10,{"$f":"$L$31","v":18},"участник",null,"Филиппова Светлана Александровна","МБОУ \"Лицей №31 имени А.А. Шаповалова\" НМР РТ"]
[31,{"$f":"'[1]31ШК ИСПР'!$H$875","v":17099466412},"Хасанова","Карина","Василевна","ж","2012-03-03",null,7,7,10,18,{"$f":"$M$32","v":"участник"},null,"Филиппова Светлана Александровна","МБОУ \"Лицей №31 имени А.А. Шаповалова\" НМР РТ"]
[32,{"$f":"'[1]31ШК ИСПР'!$H$831","v":17040562232},"Цыганов","Данил","Андреевич","м","2012-01-15",null,7,7,9,18,"участник",null,"Филиппова Светлана Александровна","МБОУ \"Лицей №31 имени А.А. Шаповалова\" НМР РТ"]
[33,{"$f":"'[1]31ШК ИСПР'!$H$834","v":17127146147},"Шарифова","Софья","Евгеньевна","ж","2012-03-10",null,7,7,8,18,"участник",null,"Филиппова Светлана Александровна","МБОУ \"Лицей №31 имени А.А. Шаповалова\" НМР РТ"]
[34,{"$f":"'[1]31ШК ИСПР'!$H$874","v":16865191712},"Феоктистов","Роман","Александрович","м","2011-09-28",null,7,7,8,18,"участник",null,"Филиппова Светлана Александровна","МБОУ \"Лицей №31 имени А.А. Шаповалова\" НМР РТ"]
[35,{"$f":"'[1]31ШК ИСПР'!$H$879","v":17316413046},"Беляев","Максим","Павлович","м","2012-07-26",null,7,7,6,18,"участник",null,"Филиппова Светлана Александровна","МБОУ \"Лицей №31 имени А.А. Шаповалова\" НМР РТ"]
[36,{"$f":"'[1]31ШК ИСПР'!$H$894","v":17286283600},"Садыков","Амир","Рустамович","м","2012-07-04",null,7,7,6,18,"участник",null,"Филиппова Светлана Александровна","МБОУ \"Лицей №31 имени А.А. Шаповалова\" НМР РТ"]
[37,{"$f":"'[1]31ШК ИСПР'!$H$833","v":16865190407},"Шакиров","Артур","Маратович","м","2011-10-06",null,7,7,6,18,"участник",null,"Филиппова Светлана Александровна","МБОУ \"Лицей №31 имени А.А. Шаповалова\" НМР РТ"]
[38,{"$f":"'[1]31ШК ИСПР'!$H$902","v":17337270673},"Шарапова","Аделя","Айратовна","ж","2012-08-14",null,7,7,4,18,"участник",null,"Филиппова Светлана Александровна","МБОУ \"Лицей №31 имени А.А. Шаповалова\" НМР РТ"]
[39,{"$f":"'[1]31ШК ИСПР'!$H$826","v":17354269382},"Сулейманкина","София","Алексеевна","ж","2012-08-22",null,7,7,4,18,"участник",null,"Филиппова Светлана Александровна","МБОУ \"Лицей №31 имени А.А. Шаповалова\" НМР РТ"]
[40,{"$f":"'[1]31ШК ИСПР'!$H$1003","v":16717217778},"Юрицкая","Александра ","Антоновна","ж","2011-02-11",null,8,8,13,18,"победитель",null,"Филиппова Светлана Александровна","МБОУ \"Лицей №31 имени А.А. Шаповалова\" НМР РТ"]
[41,{"$f":"'[1]31ШК ИСПР'!$H$912","v":16371002634},"Баров","Никита","Александрович","м","2011-01-12",null,{"$f":"I42","v":8},{"$f":"J42","v":8},10,{"$f":"$L$42","v":18},"призер",null,"Филиппова Светлана Александровна","МБОУ \"Лицей №31 имени А.А. Шаповалова\" НМР РТ"]
[42,{"$f":"'[1]31ШК ИСПР'!$H$930","v":16767121290},"Хайдарова","Алина","Ришатовна","ж","2011-07-16",null,8,8,9,18,{"$f":"$M$41","v":"участник"},null,"Филиппова Светлана Александровна","МБОУ \"Лицей №31 имени А.А. Шаповалова\" НМР РТ"]
[43,{"$f":"'[1]31ШК ИСПР'!$H$913","v":17796292540},"Бахирева","Лидия","Евгеньевна","ж","2011-03-04",null,8,8,8,18,"участник",null,"Филиппова Светлана Александровна","МБОУ \"Лицей №31 имени А.А. Шаповалова\" НМР РТ"]
[44,{"$f":"'[1]31ШК ИСПР'!$H$928","v":17147017754},"Фазилова","Камилла","Ильдаровна","ж","2011-04-06",null,8,8,7,18,"участник",null,"Филиппова Светлана Александровна","МБОУ \"Лицей №31 имени А.А. Шаповалова\" НМР РТ"]
[45,{"$f":"'[1]31ШК ИСПР'!$H$910","v":16848320498},"Ахмадеев","Карим","Фаритович","м","2011-09-23",null,8,8,6,18,"участник",null,"Филиппова Светлана Александровна","МБОУ \"Лицей №31 имени А.А. Шаповалова\" НМР РТ"]
[46,{"$f":"'[1]31ШК ИСПР'!$H$908","v":16924807804},"Антонов","Матвей","Александрович","м","2011-10-22",null,8,8,5,18,"участник",null,"Филиппова Светлана Александровна","МБОУ \"Лицей №31 имени А.А. Шаповалова\" НМР РТ"]
[47,{"$f":"'[1]31ШК ИСПР'!$H$988","v":16563312869},"Елькина","Арина","Владимировна","ж","2011-04-08",null,8,8,3,18,"участник",null,"Филиппова Светлана Александровна","МБОУ \"Лицей №31 имени А.А. Шаповалова\" НМР РТ"]
[48,{"$f":"'[1]31ШК ИСПР'!$H$1140","v":"16212874855"},"Корнишина","Анастасия","Андреевна","ж","2010-09-03",null,9,9,10,21,"участник",null,"Филиппова Светлана Александровна","МБОУ \"Лицей №31 имени А.А. Шаповалова\" НМР РТ"]
[49,{"$f":"'[1]31ШК ИСПР'!$H$1134","v":17867439942},"Ахметзянова","Таисия","Андреевна","ж","2009-04-16",null,9,9,7,21,"участник",null,"Филиппова Светлана Александровна","МБОУ \"Лицей №31 имени А.А. Шаповалова\" НМР РТ"]
[50,{"$f":"'[1]31ШК ИСПР'!$H$1138","v":"16080351639"},"Гирфанова","Камиля","Айратовна","ж","2010-05-29",null,9,9,7,21,"участник",null,"Филиппова Светлана Александровна","МБОУ \"Лицей №31 имени А.А. Шаповалова\" НМР РТ"]
[51,{"$f":"'[1]31ШК ИСПР'!$H$1175","v":"17818095002"},"Сафонова","Виктория","Александровна","ж","2009-01-15",null,10,10,12,24,"призер",null,"Филиппова Светлана Александровна","МБОУ \"Лицей №31 имени А.А. Шаповалова\" НМР РТ"]
[52,{"$f":"'[1]31ШК ИСПР'!$H$1177","v":"15721589177"},"Шаяхметова","Аиша","Ниязовна","ж","2009-04-16",null,10,10,11,24,{"$f":"$M$52","v":"участник"},null,"Филиппова Светлана Александровна","МБОУ \"Лицей №31 имени А.А. Шаповалова\" НМР РТ"]
[53,{"$f":"'[1]31ШК ИСПР'!$H$1164","v":15704171549},"Ахмедзянов","Нурислан","Ринатович","м","2009-06-14",null,10,10,11,24,"участник",null,"Филиппова Светлана Александровна","МБОУ \"Лицей №31 имени А.А. Шаповалова\" НМР РТ"]
[54,{"$f":"'[1]31ШК ИСПР'!$H$1174","v":"17228547076"},"Гаряева","Эмилия","Рамилевна","ж","2009-06-23",null,10,10,7,24,"участник",null,"Филиппова Светлана Александровна","МБОУ \"Лицей №31 имени А.А. Шаповалова\" НМР РТ"]
[55,{"$f":"'[1]31ШК ИСПР'!$H$1176","v":"18963210097"},"Тимергалеев ","Тимур","Рустемович","м","2009-05-22",null,10,10,7,24,"участник",null,"Филиппова Светлана Александровна","МБОУ \"Лицей №31 имени А.А. Шаповалова\" НМР РТ"]
[56,{"$f":"'[1]31ШК ИСПР'!$H$1198","v":15261109328},"Бадортдинова","Регина","Рустамовна","ж","2008-02-27",null,11,11,14,24,"победитель",null,"Филиппова Светлана Александровна","МБОУ \"Лицей №31 имени А.А. Шаповалова\" НМР РТ"]
[57,{"$f":"'[1]31ШК ИСПР'!$H$1204","v":15803242346},"Чепелева","Елизавета","Руслановна","ж","2007-12-09",null,11,11,13,24,"призер",null,"Филиппова Светлана Александровна","МБОУ \"Лицей №31 имени А.А. Шаповалова\" НМР РТ"]
[58,{"$f":"'[1]31ШК ИСПР'!$H$1201","v":15857301083},"Миколова","Камиля","Руслановна","ж","2007-11-05",null,11,11,10,24,{"$f":"$M$57","v":"участник"},null,"Филиппова Светлана Александровна","МБОУ \"Лицей №31 имени А.А. Шаповалова\" НМР РТ"]
[59,{"$f":"'[1]31ШК ИСПР'!$H$1202","v":15041132600},"Сидорова","Екатерина","Алексеевна","ж","2008-04-17",null,11,11,9,24,"участник",null,"Филиппова Светлана Александровна","МБОУ \"Лицей №31 имени А.А. Шаповалова\" НМР РТ"]